[Event "Condigne Dutch Open 2018"]
[Site "Dieren"]
[Date "2018.07.28"]
[Round "5"]
[White "De Boer, Eelke"]
[Black "Anurag, Mhamal"]
[Result "1/2-1/2"]
[ECO "C84"]
[WhiteElo "2317"]
[BlackElo "2484"]
[Annotator "ChessBase"]
[PlyCount "87"]
[EventDate "2018.07.24"]
[EventType "swiss"]
[EventCountry "NED"]
[SourceTitle "playchess.com"]
[Source "ChessBase"]
[SourceQuality "1"]
[TimeControl "40/5400+30:1800+30"]

1. e4 {[%emt 0:00:00]} e5 {[%emt 0:00:26]} 2. Nf3 {[%emt 0:00:00]} Nc6 {[%emt 0:00:05]} 3. Bb5 {[%emt 0:00:00]} a6 {[%emt 0:01:00]} 4. Ba4 {[%emt 0:00:00]} Nf6 {[%emt 0:00:04]} 5. O-O {[%emt 0:00:00]} Be7 {[%emt 0:00:04]} 6. d3 {[%emt 0:00:05]} b5 {[%emt 0:01:11]} 7. Bb3 {[%emt 0:00:05]} d6 {[%emt 0:00:03]} 8. a3 {[%emt 0:00:09]} Na5 {[%emt 0:00:14]} 9. Ba2 {[%emt 0:00:08]} c5 {[%emt 0:00:20]} 10. Nc3 {[%emt 0:00:15]} Be6 {[%emt 0:00:17]} 11. Bg5 {[%emt 0:00:15]} Nc6 {[%emt 0:04:16]} 12. Bxf6 {[%emt 0:00:31]} Bxf6 {[%emt 0:00:06]} 13. Nd5 {[%emt 0:00:07]} O-O {[%emt 0:00:49]} 14. c3 {[%emt 0:02:29]} g6 {[%emt 0:05:11]} 15. Qd2 {[%emt 0:12:20]} Rc8 {[%emt 0:22:45]} 16. a4 {[%emt 0:08:20]} Rb8 {[%emt 0:06:36]} 17. axb5 {[%emt 0:04:49]} axb5 {[%emt 0:00:05]} 18. Bb3 {[%emt 0:02:17]} Bxd5 {[%emt 0:02:50]} 19. Bxd5 {[%emt 0:02:24]} Ne7 {[%emt 0:00:08]} 20. Bb3 {[%emt 0:02:23]} Ra8 {[%emt 0:12:43]} 21. Qh6 {[%emt 0:26:08]} d5 {[%emt 0:07:26]} 22. Ng5 {[%emt 0:05:44]} Bxg5 {[%emt 0:00:04]} 23. Qxg5 {[%emt 0:00:04]} Rxa1 {[%emt 0:19:42]} 24. Rxa1 {[%emt 0:00:07]} Qd6 {[%emt 0:01:04]} 25. exd5 {[%emt 0:11:29]} Nxd5 {[%emt 0:00:04]} 26. d4 {[%emt 0:00:15]} Nf4 {[%emt 0:02:32]} 27. Qxe5 {[%emt 0:02:55]} Qxe5 {[%emt 0:00:08]} 28. dxe5 {[%emt 0:00:04]} c4 {[%emt 0:02:11]} 29. Bc2 {[%emt 0:00:41]} Rd8 {[%emt 0:00:25]} 30. Rd1 {[%emt 0:07:23]} Rxd1+ {[%emt 0:01:53]} 31. Bxd1 {[%emt 0:00:05]} Nd3 {[%emt 0:04:55]} 32. b3 {[%emt 0:03:00]} cxb3 {[%emt 0:00:31]} 33. Bxb3 {[%emt 0:00:07]} Nc1 {[%emt 0:00:02]} 34. Bc2 {[%emt 0:01:48]} Ne2+ {[%emt 0:00:14]} 35. Kf1 {[%emt 0:00:04]} Nxc3 {[%emt 0:00:03]} 36. Ke1 {[%emt 0:00:14]} Kf8 {[%emt 0:02:06]} 37. Kd2 {[%emt 0:00:08]} b4 {[%emt 0:03:23]} 38. Kd3 {[%emt 0:04:27]} Ke7 {[%emt 0:01:26]} 39. Bb3 {[%emt 0:00:15]} f6 {[%emt 0:00:32]} 40. f4 {[%emt 0:01:56]} g5 {[%emt 0:30:02]} 41. fxg5 {[%emt 0:13:51]} fxg5 {[%emt 0:00:00]} 42. Kc4 {[%emt 0:01:47]} Ne2 {[%emt 0:00:00]} 43. Kxb4 {[%emt 0:01:08]} Nf4 {[%emt 0:00:00]} 44. Bc2 {[%emt 0:02:16]} 1/2-1/2

[Event "Condigne Dutch Open 2018"]
[Site "Dieren"]
[Date "2018.07.28"]
[Round "5"]
[White "Van Dael, Siem"]
[Black "Wiersma, Eelke"]
[Result "1-0"]
[ECO "B06"]
[WhiteElo "2212"]
[BlackElo "2346"]
[Annotator "NA"]
[PlyCount "57"]
[EventDate "2018.07.24"]
[EventType "swiss"]
[EventCountry "NED"]
[SourceTitle "playchess.com"]
[Source "ChessBase"]
[SourceQuality "1"]
[TimeControl "40/5400+30:1800+30"]

1. e4 {[%emt 0:00:00]} d6 {[%emt 0:00:08]} 2. d4 {[%emt 0:00:00]} Nf6 {[%emt 0:00:07]} 3. Nc3 {[%emt 0:00:00]} g6 {[%emt 0:00:11]} 4. Be3 {[%emt 0:00:00]} a6 {[%emt 0:00:07]} 5. a4 {[%emt 0:00:04]} Bg7 {[%emt 0:00:35]} 6. f3 {[%emt 0:00:47]} O-O {[%emt 0:01:17]} 7. Qd2 {[%emt 0:00:47]} e5 {[%emt 0:09:38]} 8. Nge2 {[%emt 0:02:25]} exd4 {[%emt 0:07:33]} 9. Nxd4 {[%emt 0:00:21]} Nc6 {[%emt 0:00:14]} 10. Be2 {[%emt 0:02:34]} Re8 {[%emt 0:09:33]} 11. O-O {[%emt 0:01:08]} d5 {[%emt 0:08:36]} 12. Nxc6 {[%emt 0:02:07]} bxc6 {[%emt 0:00:34]} 13. Rad1 {[%emt 0:03:05]} Be6 {[%emt 0:03:35]} 14. Bd4 {[%emt 0:25:09]} Qe7 {[%emt 0:07:05]} 15. Qe3 {[%emt 0:09:57]} Bf8 {[%emt 0:06:10]} 16. b4 {[%emt 0:23:04]} Nd7 {[%emt 0:02:08]} 17. Rb1 {[%emt 0:06:39]} a5 {[%emt 0:10:11]} 18. exd5 {[%emt 0:02:16]} cxd5 {[%emt 0:00:05]} 19. b5 {[%emt 0:00:55]} Qh4 {[%emt 0:05:49]} 20. g3 {[%emt 0:01:43]} Qh3 {[%emt 0:00:48]} 21. Qf2 {[%emt 0:02:15]} Bd6 {[%emt 0:02:10]} 22. f4 {[%emt 0:02:16]} h5 {[%emt 0:00:48]} 23. Bf3 {[%emt 0:00:54]} Qf5 {[%emt 0:00:07]} 24. h4 {[%emt 0:02:04]} Rad8 {[%emt 0:00:42]} 25. Nd1 {[%emt 0:00:37]} Nf6 {[%emt 0:04:56]} 26. Ne3 {[%emt 0:01:24]} Ne4 {[%emt 0:00:04]} 27. Nxf5 {[%emt 0:00:17]} Nxf2 {[%emt 0:00:04]} 28. Nxd6 {[%emt 0:00:06]} Nh3+ {[%emt 0:00:05]} 29. Kh2 {[%emt 0:00:09]} 1-0

[Event "Condigne Dutch Open 2018"]
[Site "Dieren"]
[Date "2018.07.28"]
[Round "5"]
[White "Floor, Dirk"]
[Black "Bosboom, Manuel"]
[Result "1/2-1/2"]
[ECO "B15"]
[WhiteElo "2196"]
[BlackElo "2403"]
[Annotator "NA"]
[PlyCount "56"]
[EventDate "2018.07.24"]
[EventType "swiss"]
[EventCountry "NED"]
[SourceTitle "playchess.com"]
[Source "ChessBase"]
[SourceQuality "1"]
[TimeControl "40/5400+30:1800+30"]

1. e4 {[%emt 0:00:00]} g6 {[%emt 0:00:25]} 2. d4 {[%emt 0:00:00]} Bg7 {[%emt 0:00:06]} 3. Nc3 {[%emt 0:00:11]} c6 {[%emt 0:00:30]} 4. Be3 {[%emt 0:03:02]} d5 {[%emt 0:02:59]} 5. Qd2 {[%emt 0:01:49]} h5 {[%emt 0:11:34]} 6. Nf3 {[%emt 0:05:27]} Nh6 {[%emt 0:01:09]} 7. Bd3 {[%emt 0:04:20]} dxe4 {[%emt 0:18:35]} 8. Bxe4 {[%emt 0:02:37]} Nd7 {[%emt 0:04:00]} 9. O-O-O {[%emt 0:05:49]} Nf6 {[%emt 0:01:50]} 10. Bd3 {[%emt 0:01:17]} Bg4 {[%emt 0:05:46]} 11. Be2 {[%emt 0:03:22]} Bxf3 {[%emt 0:07:23]} 12. Bxf3 {[%emt 0:00:30]} Nf5 {[%emt 0:00:18]} 13. h3 {[%emt 0:08:51]} Qa5 {[%emt 0:12:07]} 14. g4 {[%emt 0:05:51]} Nd6 {[%emt 0:05:00]} 15. a3 {[%emt 0:09:51]} O-O-O {[%emt 0:05:22]} 16. Qe2 {[%emt 0:10:06]} hxg4 {[%emt 0:07:13]} 17. hxg4 {[%emt 0:01:09]} Nd5 {[%emt 0:01:50]} 18. Bd2 {[%emt 0:08:23]} Nxc3 {[%emt 0:03:05]} 19. Bxc3 {[%emt 0:00:12]} Qg5+ {[%emt 0:03:38]} 20. Bd2 {[%emt 0:01:36]} Qf6 {[%emt 0:00:58]} 21. c3 {[%emt 0:06:12]} e6 {[%emt 0:01:32]} 22. Bg2 {[%emt 0:02:38]} Nb5 {[%emt 0:03:20]} 23. Be3 {[%emt 0:05:54]} Kb8 {[%emt 0:00:28]} 24. Qd2 {[%emt 0:02:38]} Qe7 {[%emt 0:00:25]} 25. Bg5 {[%emt 0:01:12]} f6 {[%emt 0:00:03]} 26. Bf4+ {[%emt 0:00:25]} Ka8 {[%emt 0:00:31]} 27. Rxh8 {[%emt 0:01:38]} Bxh8 {[%emt 0:00:24]} 28. Bg3 {[%emt 0:01:58]} f5 {[%emt 0:03:59]} 1/2-1/2

[Event "Condigne Dutch Open 2018"]
[Site "Dieren"]
[Date "2018.07.28"]
[Round "5"]
[White "Pols, Wiggert"]
[Black "Rajesh, V A V"]
[Result "0-1"]
[ECO "C44"]
[WhiteElo "2177"]
[BlackElo "2309"]
[Annotator "NA"]
[PlyCount "118"]
[EventDate "2018.07.24"]
[EventType "swiss"]
[EventCountry "NED"]
[SourceTitle "playchess.com"]
[Source "ChessBase"]
[SourceQuality "1"]
[TimeControl "40/5400+30:1800+30"]

1. e4 {[%emt 0:00:00]} e5 {[%emt 0:00:18]} 2. d4 {[%emt 0:00:00]} exd4 {[%emt 0:00:51]} 3. c3 {[%emt 0:00:00]} d3 {[%emt 0:01:28]} 4. Bxd3 {[%emt 0:00:00]} Nc6 {[%emt 0:00:04]} 5. Nf3 {[%emt 0:01:02]} d6 {[%emt 0:00:10]} 6. h3 {[%emt 0:00:40]} Nf6 {[%emt 0:01:01]} 7. Nbd2 {[%emt 0:01:55]} g6 {[%emt 0:00:15]} 8. O-O {[%emt 0:00:51]} Bg7 {[%emt 0:00:07]} 9. Nd4 {[%emt 0:03:03]} Bd7 {[%emt 0:02:13]} 10. f4 {[%emt 0:00:42]} O-O {[%emt 0:00:18]} 11. N2f3 {[%emt 0:00:42]} Re8 {[%emt 0:01:09]} 12. Qc2 {[%emt 0:01:15]} Nxd4 {[%emt 0:09:55]} 13. cxd4 {[%emt 0:00:41]} Bc6 {[%emt 0:00:05]} 14. Re1 {[%emt 0:07:58]} d5 {[%emt 0:04:55]} 15. e5 {[%emt 0:00:38]} Ne4 {[%emt 0:00:08]} 16. b4 {[%emt 0:02:09]} Qd7 {[%emt 0:01:26]} 17. Be3 {[%emt 0:04:40]} a5 {[%emt 0:01:11]} 18. a3 {[%emt 0:05:35]} Bf8 {[%emt 0:01:56]} 19. Rab1 {[%emt 0:01:48]} Ba4 {[%emt 0:00:28]} 20. Qc1 {[%emt 0:07:49]} axb4 {[%emt 0:02:50]} 21. axb4 {[%emt 0:00:06]} Bb5 {[%emt 0:00:19]} 22. Bc2 {[%emt 0:01:21]} Ra6 {[%emt 0:02:10]} 23. Qb2 {[%emt 0:06:00]} Rea8 {[%emt 0:01:29]} 24. Ra1 {[%emt 0:01:10]} Rxa1 {[%emt 0:07:07]} 25. Rxa1 {[%emt 0:00:05]} Rxa1+ {[%emt 0:00:24]} 26. Qxa1 {[%emt 0:00:03]} Qc6 {[%emt 0:00:10]} 27. Bxe4 {[%emt 0:16:04]} dxe4 {[%emt 0:00:03]} 28. Nh4 {[%emt 0:00:33]} Be7 {[%emt 0:02:33]} 29. Qe1 {[%emt 0:01:57]} Qc2 {[%emt 0:01:51]} 30. Qg3 {[%emt 0:05:20]} Qd1+ {[%emt 0:03:30]} 31. Kh2 {[%emt 0:00:07]} Qh5 {[%emt 0:04:49]} 32. Bf2 {[%emt 0:00:09]} Bd7 {[%emt 0:00:34]} 33. Be1 {[%emt 0:04:15]} h6 {[%emt 0:01:32]} 34. Qf2 {[%emt 0:02:18]} Qd1 {[%emt 0:01:41]} 35. g4 {[%emt 0:08:01]} h5 {[%emt 0:08:25]} 36. f5 {[%emt 0:03:59]} e3 {[%emt 0:06:56]} 37. Qxe3 {[%emt 0:01:59]} hxg4 {[%emt 0:00:06]} 38. fxg6 {[%emt 0:02:45]} Qc2+ {[%emt 0:01:13]} 39. Qf2 {[%emt 0:05:06]} Qxf2+ {[%emt 0:00:49]} 40. Bxf2 {[%emt 0:00:04]} gxh3 {[%emt 0:30:20]} 41. gxf7+ {[%emt 0:34:43]} Kxf7 {[%emt 0:00:07]} 42. d5 {[%emt 0:00:26]} Bg4 {[%emt 0:00:29]} 43. Be1 {[%emt 0:02:28]} b5 {[%emt 0:04:10]} 44. e6+ {[%emt 0:00:00]} Kg7 {[%emt 0:00:00]} 45. Bg3 {[%emt 0:00:00]} Kh6 {[%emt 0:00:00]} 46. Bf4+ {[%emt 0:00:00]} Kh5 {[%emt 0:00:00]} 47. Bxc7 {[%emt 0:00:00]} Bxh4 {[%emt 0:00:00]} 48. Bd6 {[%emt 0:00:00]} Kg6 {[%emt 0:00:00]} 49. Bc5 {[%emt 0:00:00]} Be1 {[%emt 0:00:00]} 50. Bf8 {[%emt 0:00:00]} Kf6 {[%emt 0:00:00]} 51. Bd6 {[%emt 0:00:00]} Bf5 {[%emt 0:00:00]} 52. Bc5 {[%emt 0:00:00]} Ke5 {[%emt 0:00:00]} 53. e7 {[%emt 0:00:00]} Bd7 {[%emt 0:00:00]} 54. d6 {[%emt 0:00:00]} Kd5 {[%emt 0:00:00]} 55. e8=Q {[%emt 0:00:00]} Bxe8 {[%emt 0:00:00]} 56. Kxh3 {[%emt 0:00:00]} Bd7+ {[%emt 0:00:00]} 57. Kg2 {[%emt 0:00:00]} Kc4 {[%emt 0:00:00]} 58. Be3 {[%emt 0:00:13]} Bxb4 {[%emt 0:00:00]} 59. Kf2 {[%emt 0:01:25]} Kd3 {[%emt 0:00:00]} 0-1

[Event "Condigne Dutch Open 2018"]
[Site "Dieren"]
[Date "2018.07.28"]
[Round "5"]
[White "Wedda, Dries"]
[Black "Beukema, Jasper"]
[Result "0-1"]
[ECO "E01"]
[WhiteElo "2069"]
[BlackElo "2299"]
[Annotator "NA"]
[PlyCount "74"]
[EventDate "2018.07.24"]
[EventType "swiss"]
[EventCountry "NED"]
[SourceTitle "playchess.com"]
[Source "ChessBase"]
[SourceQuality "1"]
[TimeControl "40/5400+30:1800+30"]

1. d4 {[%emt 0:00:00]} d5 {[%emt 0:00:06]} 2. c4 {[%emt 0:00:00]} e6 {[%emt 0:00:06]} 3. Nf3 {[%emt 0:00:00]} Nf6 {[%emt 0:00:03]} 4. g3 {[%emt 0:00:00]} Bb4+ {[%emt 0:00:43]} 5. Bd2 {[%emt 0:00:00]} Bd6 {[%emt 0:00:09]} 6. Qc2 {[%emt 0:05:39]} c6 {[%emt 0:02:40]} 7. Bg2 {[%emt 0:07:45]} Ne4 {[%emt 0:01:45]} 8. O-O {[%emt 0:00:28]} O-O {[%emt 0:00:08]} 9. Ne5 {[%emt 0:06:02]} Nxd2 {[%emt 0:02:01]} 10. Nxd2 {[%emt 0:00:11]} f6 {[%emt 0:14:22]} 11. Nd3 {[%emt 0:00:55]} Bc7 {[%emt 0:02:18]} 12. Qc3 {[%emt 0:06:08]} Nd7 {[%emt 0:08:32]} 13. Rac1 {[%emt 0:09:00]} Nb6 {[%emt 0:03:25]} 14. e4 {[%emt 0:03:38]} Rf7 {[%emt 0:07:56]} 15. Rfe1 {[%emt 0:05:35]} dxc4 {[%emt 0:14:53]} 16. Nxc4 {[%emt 0:06:04]} Rd7 {[%emt 0:01:00]} 17. Nxb6 {[%emt 0:01:36]} Bxb6 {[%emt 0:00:13]} 18. d5 {[%emt 0:00:10]} e5 {[%emt 0:00:39]} 19. Qb3 {[%emt 0:46:19]} Rd6 {[%emt 0:02:24]} 20. Red1 {[%emt 0:00:00]} cxd5 {[%emt 0:06:12]} 21. Nb4 {[%emt 0:00:00]} Be6 {[%emt 0:03:58]} 22. Nxd5 {[%emt 0:00:00]} Bd4 {[%emt 0:00:48]} 23. Rc2 {[%emt 0:00:00]} Rc6 {[%emt 0:06:55]} 24. Rdc1 {[%emt 0:00:00]} Rac8 {[%emt 0:10:20]} 25. Bf1 {[%emt 0:00:00]} Kh8 {[%emt 0:05:57]} 26. Bc4 {[%emt 0:00:00]} f5 {[%emt 0:01:23]} 27. Ne3 {[%emt 0:00:00]} Bxc4 {[%emt 0:01:15]} 28. Nxc4 {[%emt 0:00:00]} f4 {[%emt 0:00:56]} 29. Qxb7 {[%emt 0:00:00]} Bxf2+ {[%emt 0:02:43]} 30. Kg2 {[%emt 0:00:00]} Bd4 {[%emt 0:01:06]} 31. g4 {[%emt 0:00:00]} h5 {[%emt 0:00:13]} 32. Kh1 {[%emt 0:00:00]} hxg4 {[%emt 0:00:39]} 33. Qf7 {[%emt 0:00:34]} Qh4 {[%emt 0:00:33]} 34. Qf5 {[%emt 0:01:06]} g3 {[%emt 0:00:36]} 35. h3 {[%emt 0:00:54]} Rxc4 {[%emt 0:00:21]} 36. Rxc4 {[%emt 0:00:10]} Rxc4 {[%emt 0:00:38]} 37. Rxc4 {[%emt 0:00:06]} g2+ {[%emt 0:00:07]} 0-1

[Event "Condigne Dutch Open 2018"]
[Site "Dieren"]
[Date "2018.07.30"]
[Round "6"]
[White "Reinderman, Dimitri"]
[Black "Ikonnikov, Vyacheslav"]
[Result "1/2-1/2"]
[ECO "A17"]
[WhiteElo "2575"]
[BlackElo "2536"]
[Annotator "ChessBase"]
[PlyCount "81"]
[EventDate "2018.07.24"]
[EventType "swiss"]
[EventCountry "NED"]
[SourceTitle "playchess.com"]
[Source "ChessBase"]
[SourceQuality "1"]
[TimeControl "40/5400+30:1800+30"]

1. Nf3 {[%emt 0:00:00]} Nf6 {[%emt 0:00:00]} 2. c4 {[%emt 0:00:00]} e6 {[%emt 0:00:32]} 3. Nc3 {[%emt 0:00:00]} Bb4 {[%emt 0:00:53]} 4. Qc2 {[%emt 0:00:00]} O-O {[%emt 0:01:26]} 5. a3 {[%emt 0:00:05]} Bxc3 {[%emt 0:01:47]} 6. Qxc3 {[%emt 0:00:05]} a5 {[%emt 0:00:13]} 7. b4 {[%emt 0:04:10]} d6 {[%emt 0:01:29]} 8. Bb2 {[%emt 0:00:23]} e5 {[%emt 0:00:26]} 9. e3 {[%emt 0:00:48]} Re8 {[%emt 0:04:22]} 10. Be2 {[%emt 0:04:27]} Bg4 {[%emt 0:07:13]} 11. d3 {[%emt 0:01:26]} axb4 {[%emt 0:29:06]} 12. axb4 {[%emt 0:00:11]} Rxa1+ {[%emt 0:00:05]} 13. Bxa1 {[%emt 0:00:05]} Nbd7 {[%emt 0:01:10]} 14. h3 {[%emt 0:02:08]} Bh5 {[%emt 0:00:06]} 15. O-O {[%emt 0:00:38]} h6 {[%emt 0:01:19]} 16. Bb2 {[%emt 0:05:55]} Qe7 {[%emt 0:09:51]} 17. Ra1 {[%emt 0:07:09]} Rb8 {[%emt 0:01:18]} 18. Kf1 {[%emt 0:04:01]} Qf8 {[%emt 0:02:06]} 19. Ra7 {[%emt 0:02:24]} e4 {[%emt 0:04:13]} 20. dxe4 {[%emt 0:04:13]} Nxe4 {[%emt 0:00:06]} 21. Qc2 {[%emt 0:00:28]} Qe7 {[%emt 0:04:44]} 22. Bd3 {[%emt 0:02:15]} Bg6 {[%emt 0:01:42]} 23. Kg1 {[%emt 0:00:53]} c5 {[%emt 0:05:12]} 24. Nd2 {[%emt 0:05:32]} Nxd2 {[%emt 0:03:54]} 25. Bxg6 {[%emt 0:00:26]} fxg6 {[%emt 0:02:36]} 26. Qxd2 {[%emt 0:00:07]} Nb6 {[%emt 0:00:08]} 27. Qd3 {[%emt 0:15:27]} Qe6 {[%emt 0:04:04]} 28. bxc5 {[%emt 0:13:08]} dxc5 {[%emt 0:01:01]} 29. Qb3 {[%emt 0:00:38]} Kh7 {[%emt 0:05:01]} 30. Ra5 {[%emt 0:05:47]} Nd7 {[%emt 0:02:56]} 31. Qc3 {[%emt 0:02:04]} Qf7 {[%emt 0:01:08]} 32. Ra7 {[%emt 0:01:24]} Nf6 {[%emt 0:01:25]} 33. Qa5 {[%emt 0:04:00]} Ne4 {[%emt 0:02:49]} 34. f3 {[%emt 0:00:37]} Ng5 {[%emt 0:01:42]} 35. e4 {[%emt 0:07:33]} Ne6 {[%emt 0:00:44]} 36. Be5 {[%emt 0:09:33]} Rd8 {[%emt 0:00:03]} 37. Kh2 {[%emt 0:00:00]} Rd7 {[%emt 0:00:26]} 38. Qb5 {[%emt 0:00:00]} g5 {[%emt 0:00:20]} 39. Ra2 {[%emt 0:00:00]} Qe7 {[%emt 0:00:25]} 40. Bg3 {[%emt 0:01:15]} Rd1 {[%emt 0:01:15]} 41. Ra8 {[%emt 0:07:52]} 1/2-1/2

[Event "Condigne Dutch Open 2018"]
[Site "Dieren"]
[Date "2018.07.30"]
[Round "6"]
[White "Chanda, Sandipan"]
[Black "Van den Doel, Erik"]
[Result "0-1"]
[ECO "C96"]
[WhiteElo "2548"]
[BlackElo "2593"]
[Annotator "ChessBase"]
[PlyCount "126"]
[EventDate "2018.07.24"]
[EventType "swiss"]
[EventCountry "NED"]
[SourceTitle "playchess.com"]
[Source "ChessBase"]
[SourceQuality "1"]
[TimeControl "40/5400+30:1800+30"]

1. e4 {[%emt 0:00:04]} e5 {[%emt 0:00:00]} 2. Nf3 {[%emt 0:00:08]} Nc6 {[%emt 0:00:00]} 3. Bb5 {[%emt 0:00:07]} a6 {[%emt 0:00:00]} 4. Ba4 {[%emt 0:00:06]} Nf6 {[%emt 0:00:00]} 5. O-O {[%emt 0:00:10]} Be7 {[%emt 0:00:00]} 6. Re1 {[%emt 0:00:07]} b5 {[%emt 0:00:41]} 7. Bb3 {[%emt 0:00:09]} d6 {[%emt 0:00:02]} 8. c3 {[%emt 0:00:09]} O-O {[%emt 0:00:06]} 9. h3 {[%emt 0:00:10]} Na5 {[%emt 0:02:26]} 10. Bc2 {[%emt 0:01:12]} c5 {[%emt 0:00:04]} 11. d4 {[%emt 0:00:08]} Nd7 {[%emt 0:00:22]} 12. d5 {[%emt 0:00:36]} Nb6 {[%emt 0:03:10]} 13. Nbd2 {[%emt 0:00:20]} c4 {[%emt 0:08:58]} 14. b4 {[%emt 0:10:21]} cxb3 {[%emt 0:04:41]} 15. axb3 {[%emt 0:00:11]} Nb7 {[%emt 0:00:06]} 16. c4 {[%emt 0:05:25]} b4 {[%emt 0:02:42]} 17. Nf1 {[%emt 0:01:34]} a5 {[%emt 0:06:15]} 18. Ne3 {[%emt 0:05:07]} Nc5 {[%emt 0:19:36]} 19. Bd2 {[%emt 0:01:04]} g6 {[%emt 0:07:09]} 20. Ng4 {[%emt 0:06:53]} h5 {[%emt 0:14:59]} 21. Ngh2 {[%emt 0:29:09]} Bd7 {[%emt 0:02:33]} 22. Bh6 {[%emt 0:19:57]} Re8 {[%emt 0:00:16]} 23. Qd2 {[%emt 0:00:07]} a4 {[%emt 0:03:45]} 24. Qxb4 {[%emt 0:01:40]} axb3 {[%emt 0:00:47]} 25. Rxa8 {[%emt 0:01:09]} Qxa8 {[%emt 0:07:41]} 26. Bxb3 {[%emt 0:00:05]} Rb8 {[%emt 0:00:14]} 27. Bc2 {[%emt 0:06:15]} Nxd5 {[%emt 0:01:25]} 28. Qd2 {[%emt 0:00:05]} Nf6 {[%emt 0:00:32]} 29. Ng5 {[%emt 0:03:16]} Qa2 {[%emt 0:01:14]} 30. Nf1 {[%emt 0:02:36]} Rb2 {[%emt 0:02:49]} 31. Ne3 {[%emt 0:01:11]} Nfxe4 {[%emt 0:01:02]} 32. Nxe4 {[%emt 0:00:08]} Nxe4 {[%emt 0:00:03]} 33. Qd5 {[%emt 0:00:35]} Nf6 {[%emt 0:05:19]} 34. Qd3 {[%emt 0:00:04]} Qa5 {[%emt 0:00:51]} 35. Rd1 {[%emt 0:00:31]} Ra2 {[%emt 0:03:46]} 36. Bg5 {[%emt 0:01:01]} Ra3 {[%emt 0:00:19]} 37. Qd2 {[%emt 0:00:48]} Qxd2 {[%emt 0:00:24]} 38. Rxd2 {[%emt 0:00:02]} Be6 {[%emt 0:01:57]} 39. Bxf6 {[%emt 0:00:09]} Bxf6 {[%emt 0:00:22]} 40. Rxd6 {[%emt 0:00:02]} Kg7 {[%emt 0:02:07]} 41. Be4 {[%emt 0:13:32]} Bg5 {[%emt 0:13:12]} 42. Rd3 {[%emt 0:11:41]} Ra1+ {[%emt 0:02:01]} 43. Kh2 {[%emt 0:00:14]} h4 {[%emt 0:09:10]} 44. Bd5 {[%emt 0:03:58]} Bc8 {[%emt 0:01:29]} 45. Rd1 {[%emt 0:00:26]} Ra3 {[%emt 0:00:44]} 46. Rb1 {[%emt 0:06:00]} Bxe3 {[%emt 0:02:29]} 47. fxe3 {[%emt 0:00:03]} Rxe3 {[%emt 0:00:05]} 48. Rb8 {[%emt 0:02:50]} Be6 {[%emt 0:00:40]} 49. Bxe6 {[%emt 0:00:06]} fxe6 {[%emt 0:00:03]} 50. c5 {[%emt 0:00:42]} Rc3 {[%emt 0:00:23]} 51. Rc8 {[%emt 0:00:29]} e4 {[%emt 0:00:40]} 52. Kg1 {[%emt 0:00:29]} Kf6 {[%emt 0:02:34]} 53. c6 {[%emt 0:00:06]} Ke5 {[%emt 0:00:10]} 54. Kf2 {[%emt 0:01:24]} Rc2+ {[%emt 0:00:26]} 55. Kf1 {[%emt 0:01:39]} Kf4 {[%emt 0:01:54]} 56. Ke1 {[%emt 0:00:42]} Ke3 {[%emt 0:00:27]} 57. Kd1 {[%emt 0:00:01]} Rd2+ {[%emt 0:00:35]} 58. Kc1 {[%emt 0:00:11]} Rd6 {[%emt 0:00:06]} 59. Kc2 {[%emt 0:00:23]} Kf2 {[%emt 0:00:47]} 60. Kc3 {[%emt 0:01:34]} e3 {[%emt 0:01:15]} 61. Rf8+ {[%emt 0:00:08]} Kxg2 {[%emt 0:00:07]} 62. Rf4 {[%emt 0:00:04]} e2 {[%emt 0:00:34]} 63. Re4 {[%emt 0:00:08]} Kf3 {[%emt 0:00:45]} 0-1

[Event "Condigne Dutch Open 2018"]
[Site "Dieren"]
[Date "2018.07.30"]
[Round "6"]
[White "Anurag, Mhamal"]
[Black "Van Foreest, Lucas"]
[Result "0-1"]
[ECO "C54"]
[WhiteElo "2484"]
[BlackElo "2488"]
[Annotator "RC"]
[PlyCount "56"]
[EventDate "2018.07.24"]
[EventType "swiss"]
[EventCountry "NED"]
[SourceTitle "playchess.com"]
[Source "ChessBase"]
[SourceQuality "1"]
[TimeControl "40/5400+30:1800+30"]

1. e4 {[%emt 0:00:00]} e5 {[%emt 0:00:00]} 2. Nf3 {[%emt 0:00:00]} Nc6 {[%emt 0:00:00]} 3. Bc4 {[%emt 0:00:12]} Bc5 {[%emt 0:00:00]} 4. O-O {[%emt 0:00:08]} Nf6 {[%emt 0:00:00]} 5. d3 {[%emt 0:00:05]} O-O {[%emt 0:00:00]} 6. Re1 {[%emt 0:02:00]} d6 {[%emt 0:00:19]} 7. c3 {[%emt 0:01:41]} Ne7 {[%emt 0:01:03]} 8. d4 {[%emt 0:14:50]} Bb6 {[%emt 0:01:24]} 9. a4 {[%emt 0:06:48]} c6 {[%emt 0:01:15]} 10. a5 {[%emt 0:01:24]} Bc7 {[%emt 0:05:05]} 11. dxe5 {[%emt 0:01:23]} dxe5 {[%emt 0:00:04]} 12. Qc2 {[%emt 0:04:17]} Ng6 {[%emt 0:00:42]} 13. Be3 {[%emt 0:00:59]} Qe7 {[%emt 0:05:34]} 14. Nbd2 {[%emt 0:02:12]} Ng4 {[%emt 0:16:35]} 15. Bg5 {[%emt 0:01:25]} Qc5 {[%emt 0:00:11]} 16. b4 {[%emt 0:00:10]} Qxf2+ {[%emt 0:00:04]} 17. Kh1 {[%emt 0:00:02]} a6 {[%emt 0:00:05]} 18. h3 {[%emt 0:32:33]} h6 {[%emt 0:00:37]} 19. Re2 {[%emt 0:00:07]} Qa7 {[%emt 0:00:07]} 20. hxg4 {[%emt 0:00:36]} hxg5 {[%emt 0:03:31]} 21. Nxg5 {[%emt 0:00:08]} Bxg4 {[%emt 0:21:21]} 22. Qb3 {[%emt 0:00:22]} Nf4 {[%emt 0:08:50]} 23. Bxf7+ {[%emt 0:06:41]} Kh8 {[%emt 0:00:57]} 24. g3 {[%emt 0:00:32]} Bxe2 {[%emt 0:04:18]} 25. gxf4 {[%emt 0:00:07]} Rad8 {[%emt 0:03:35]} 26. Qe6 {[%emt 0:04:39]} Rd6 {[%emt 0:00:03]} 27. Qe7 {[%emt 0:01:11]} Rh6+ {[%emt 0:00:53]} 28. Kg2 {[%emt 0:00:04]} Bd6 {[%emt 0:00:47]} 0-1

[Event "Condigne Dutch Open 2018"]
[Site "Dieren"]
[Date "2018.07.30"]
[Round "6"]
[White "Beukema, Stefan"]
[Black "Anand Nadar"]
[Result "1/2-1/2"]
[ECO "C94"]
[WhiteElo "2404"]
[BlackElo "2346"]
[Annotator "NA"]
[PlyCount "52"]
[EventDate "2018.07.24"]
[EventType "swiss"]
[EventCountry "NED"]
[SourceTitle "playchess.com"]
[Source "ChessBase"]
[SourceQuality "1"]
[TimeControl "40/5400+30:1800+30"]

1. e4 {[%emt 0:00:00]} e5 {[%emt 0:00:07]} 2. Nf3 {[%emt 0:01:37]} Nc6 {[%emt 0:00:13]} 3. Bb5 {[%emt 0:00:14]} a6 {[%emt 0:00:18]} 4. Ba4 {[%emt 0:00:12]} Nf6 {[%emt 0:00:07]} 5. O-O {[%emt 0:00:08]} Be7 {[%emt 0:00:05]} 6. Re1 {[%emt 0:01:03]} b5 {[%emt 0:00:14]} 7. Bb3 {[%emt 0:00:07]} d6 {[%emt 0:04:44]} 8. c3 {[%emt 0:00:15]} O-O {[%emt 0:00:07]} 9. h3 {[%emt 0:00:05]} Nb8 {[%emt 0:00:13]} 10. d3 {[%emt 0:07:28]} c5 {[%emt 0:00:27]} 11. Nbd2 {[%emt 0:00:33]} Re8 {[%emt 0:05:20]} 12. Nf1 {[%emt 0:05:30]} Bf8 {[%emt 0:03:17]} 13. Ng5 {[%emt 0:01:58]} Re7 {[%emt 0:06:54]} 14. f4 {[%emt 0:00:47]} h6 {[%emt 0:06:09]} 15. Nf3 $11 {[%emt 0:00:28]} Nc6 {[%emt 0:11:31]} 16. Ng3 {[%emt 0:04:26]} exf4 {[%emt 0:21:59]} 17. Bxf4 {[%emt 0:00:18]} Ne5 {[%emt 0:00:08]} 18. Bc2 {[%emt 0:08:29]} Qb6 {[%emt 0:06:36]} 19. Kh2 {[%emt 0:04:42]} Bb7 {[%emt 0:01:21]} 20. b3 {[%emt 0:10:41]} Ng6 {[%emt 0:06:00]} 21. Be3 {[%emt 0:01:12]} d5 {[%emt 0:07:23]} 22. e5 {[%emt 0:11:18]} Nxe5 {[%emt 0:00:31]} 23. Nxe5 {[%emt 0:00:07]} Rxe5 {[%emt 0:00:04]} 24. Bxc5 {[%emt 0:00:08]} Rxe1 {[%emt 0:01:18]} 25. Bxb6 {[%emt 0:00:06]} Rxd1 {[%emt 0:00:05]} 26. Bxd1 {[%emt 0:00:18]} Bd6 {[%emt 0:05:52]} 1/2-1/2